bitfinex-derivatives/quotes_BNBF0:USTF0_20250128
["timestamp","ask_amount","ask_price","bid_price","bid_amount"]
[1738100177174,0.27637094,665.64,664.45,1.12119965]
[1738100177580,0.27638778,665.63,664.45,1.12119965]
[1738100177878,0.27638778,665.62,664.45,1.12119965]
[1738100178073,0.27638778,665.61,664.45,1.12119965]
[1738100178280,0.27638778,665.64,664.45,1.12119965]
[1738100178479,0.27638778,665.63,664.45,1.12119965]
[1738100178779,0.27638778,665.62,664.45,1.12119965]
[1738100178973,0.27638778,665.61,664.45,1.12119965]
[1738100179281,0.27638778,665.64,664.45,1.12119965]
[1738100179475,0.27638778,665.63,664.45,1.12119965]
[1738100179682,0.27638778,665.64,664.33,1.42225484]
[1738100179983,0.27638778,665.63,664.33,1.42225484]
[1738100180175,0.27638778,665.64,664.33,1.42225484]
[1738100180375,0.27638778,665.63,664.33,1.42225484]
[1738100180576,0.27638778,665.62,664.33,1.42225484]
[1738100180781,0.30045819,665.65,664.33,1.42225484]
[1738100181080,0.27639131,665.64,664.33,1.42225484]
[1738100182584,0.27638248,665.63,664.33,1.42225484]
[1738100182784,0.27638248,665.62,664.33,1.42225484]
[1738100182978,0.27638248,665.61,664.33,1.42225484]
[1738100183184,0.27638248,665.6,664.33,1.42225484]
[1738100183378,0.27638248,665.59,664.33,1.42225484]
[1738100183583,0.27638248,665.58,664.33,1.42225484]
[1738100183782,0.27638248,665.64,664.33,1.42225484]
[1738100183984,0.27638248,665.63,664.33,1.42225484]
[1738100184282,0.27638248,665.62,664.33,1.42225484]
[1738100184483,0.27638248,665.64,664.33,1.42225484]
[1738100184685,0.27638248,665.63,664.33,1.42225484]
[1738100184884,1.56984809,665.61,664.33,1.42225484]
[1738100185085,0.27638248,665.6,664.33,1.42225484]
[1738100185490,0.27638248,665.6,664.41,1.12119965]
[1738100189791,0.276392,665.59,664.41,1.12119965]
[1738100189989,0.276392,665.6,664.41,1.12119965]
[1738100190189,0.276392,665.59,664.41,1.12119965]
[1738100190391,0.276392,665.58,664.41,1.12119965]
[1738100190690,1.12228753,665.52,664.54,1.12119965]
[1738100190990,0.276392,665.51,664.54,1.12119965]
[1738100192391,1.12228753,665.52,664.54,1.12119965]
[1738100192591,0.2763869,665.51,664.54,1.12119965]
[1738100193593,0.2763869,665.51,664.53,1.12119965]
[1738100193891,0.2763869,665.5,664.53,1.12119965]
[1738100194085,0.2763869,665.49,664.53,1.12119965]
[1738100194289,1.12228753,665.56,664.53,1.12119965]
[1738100194484,0.27637272,665.55,664.53,1.12119965]
[1738100195791,1.12228753,665.56,664.53,1.12119965]
[1738100197391,1.12228753,665.58,664.57,1.12119965]
[1738100200293,0.30045819,665.65,664.59,1.12119965]
[1738100203195,0.30045819,665.65,664.33,0.30105519]
[1738100203196,0.30045819,665.65,664.36,1.12119965]
[1738100203998,1.56971237,665.64,664.36,1.12119965]
[1738100205600,1.56971237,665.64,664.34,1.12119965]
[1738100205800,1.56971237,665.64,664.35,0.30104613]
[1738100207996,0.30045819,665.65,664.35,0.30104613]
[1738100208605,0.30045819,665.65,664.45,1.12119965]
[1738100208798,0.30045819,665.65,664.46,0.30099629]
[1738100218411,1.56993071,665.64,664.46,0.30099629]
[1738100219303,0.30046722,665.63,664.46,0.30099629]
[1738100220511,0.27642365,665.62,664.46,0.30099629]
[1738100220712,0.30047625,665.61,664.46,0.30099629]
[1738100221413,0.2764238,665.6,664.46,0.30099629]
[1738100221716,0.30048528,665.59,664.46,0.30099629]
[1738100221914,0.2764238,665.58,664.46,0.30099629]
[1738100222116,0.30049431,665.57,664.46,0.30099629]
[1738100222414,0.2764299,665.56,664.46,0.30099629]
[1738100222609,0.57692872,665.56,664.46,0.30099629]
[1738100222811,0.2764299,665.55,664.46,0.30099629]
[1738100223316,0.2764299,665.55,664.2,1.12119965]
[1738100224115,0.57698529,665.54,664.2,1.12119965]
[1738100224318,0.57698981,665.53,664.2,1.12119965]
[1738100224514,0.27647744,665.52,664.2,1.12119965]
[1738100224714,0.3005214,665.51,664.2,1.12119965]
[1738100224916,0.27647744,665.5,664.2,1.12119965]
[1738100225713,0.3005214,665.51,664.2,1.12119965]
[1738100225918,0.27641361,665.5,664.2,1.12119965]
[1738100226218,0.27641361,665.5,664.2,1.42231377]
[1738100227317,0.27641361,665.5,664.26,1.12119965]
[1738100228614,1.57014912,665.49,664.26,1.12119965]
[1738100229218,0.30053495,665.48,664.26,1.12119965]
[1738100230219,0.30053495,665.48,664.29,1.12119965]
[1738100232320,0.27650971,665.47,664.29,1.12119965]
[1738100232521,0.30054398,665.46,664.29,1.12119965]
[1738100232719,0.27650971,665.45,664.29,1.12119965]
[1738100232917,0.30055301,665.44,664.29,1.12119965]
[1738100233118,0.27650971,665.43,664.29,1.12119965]
[1738100233319,0.30056205,665.42,664.29,1.12119965]
[1738100233522,0.27650971,665.41,664.29,1.12119965]
[1738100234017,0.30057108,665.4,664.2,0.30111412]
[1738100234320,0.27650971,665.39,664.2,0.30111412]
[1738100234816,0.30058011,665.38,663.56,1.12119965]
[1738100235014,0.27658266,665.37,663.58,0.30139546]
[1738100235217,0.30059367,665.35,663.58,0.30139546]
[1738100235415,0.27658266,665.34,663.58,0.30139546]
[1738100235615,0.3006027,665.33,663.58,0.30139546]
[1738100235820,0.27658266,665.32,663.58,0.30139546]
[1738100236121,0.30061174,665.31,663.58,0.30139546]
[1738100236420,0.27658371,665.3,663.58,0.30139546]
[1738100236722,0.5772091,665.29,663.58,0.30139546]
[1738100236922,0.30062078,665.29,663.58,0.30139546]
[1738100237123,0.3006253,665.28,663.58,0.30139546]
[1738100239023,1.57103517,665.27,663.58,0.30139546]
[1738100239223,0.30063433,665.26,663.58,0.30139546]
[1738100242823,0.30063433,665.26,663.59,1.5709938]
[1738100243525,0.27653736,665.25,663.59,1.5709938]
[1738100243724,0.30063433,665.26,663.59,1.5709938]
[1738100243924,0.27657136,665.25,663.59,1.5709938]
[1738100244821,0.27658429,665.24,663.59,1.5709938]
[1738100245026,0.27658429,665.23,663.59,1.5709938]
[1738100245225,0.27658429,665.25,663.59,1.5709938]
[1738100245427,0.27658429,665.24,663.59,1.5709938]
[1738100245727,0.27658429,665.23,663.59,1.5709938]
[1738100246027,0.30063433,665.26,663.59,1.5709938]
[1738100246230,0.27659332,665.25,663.59,1.5709938]
[1738100246624,0.27659332,665.25,663.61,0.30138183]
[1738100246823,0.30064337,665.24,663.61,0.30138183]
[1738100247026,0.27659332,665.23,663.61,0.30138183]
[1738100249929,0.27659332,665.22,663.61,0.30138183]
[1738100250232,0.27659332,665.21,663.61,0.30138183]
[1738100250425,0.27659332,665.2,663.61,0.30138183]
[1738100250628,0.27659332,665.19,663.61,0.30138183]
[1738100250934,0.27659332,665.18,663.61,0.30138183]
[1738100251330,0.30067501,665.17,663.61,0.30138183]
[1738100251634,0.27659332,665.16,663.61,0.30138183]
[1738100251931,0.57727737,665.15,663.61,0.30138183]
[1738100252133,0.57728189,665.14,663.61,0.30138183]
[1738100252327,0.57728641,665.13,663.61,0.30138183]
[1738100252529,0.57729093,665.12,663.61,0.30138183]
[1738100252733,0.27659332,665.11,663.61,0.30138183]
[1738100253032,0.27659332,665.1,663.61,0.30138183]
[1738100253227,0.27659332,665.09,663.61,0.30138183]
[1738100253435,0.27659332,665.08,663.61,0.30138183]
[1738100253625,0.27659332,665.07,663.61,0.30138183]
[1738100253934,0.27659332,665.06,663.61,0.30138183]
[1738100254134,0.27659332,665.05,663.61,0.30138183]
[1738100254326,0.57732711,665.04,663.61,0.30138183]
[1738100254529,0.57733163,665.03,663.61,0.30138183]
[1738100254731,0.57733615,665.02,663.61,0.30138183]
[1738100255036,0.57734067,665.01,663.61,0.30138183]
[1738100255334,0.57734519,665.0,663.61,0.30138183]
[1738100255532,0.57734972,664.99,663.61,0.30138183]
[1738100255834,0.57735424,664.98,663.61,0.30138183]
[1738100256033,0.57735876,664.97,663.61,0.30138183]
[1738100256334,0.57736329,664.96,663.61,0.30138183]
[1738100256537,0.57736781,664.95,663.61,0.30138183]
[1738100256737,0.27659332,664.94,663.61,0.30138183]
[1738100257834,0.30078354,664.93,663.61,0.30138183]
[1738100258231,0.27668992,664.92,663.61,0.30138183]
[1738100258531,0.30079258,664.91,663.61,0.30138183]
[1738100259435,0.27666152,664.9,663.61,0.30138183]
[1738100259633,0.30079258,664.91,663.61,0.30138183]
[1738100260033,0.27665745,664.9,663.61,0.30138183]
[1738100261134,1.57183938,664.89,663.61,0.30138183]
[1738100261334,0.27665745,664.88,663.61,0.30138183]
[1738100274344,0.30081068,664.87,663.61,0.30138183]
[1738100274849,0.27670596,664.86,663.61,0.30138183]
[1738100275050,0.30081973,664.85,663.61,0.30138183]
[1738100275249,0.27670596,664.84,663.61,0.30138183]
[1738100275855,0.30082878,664.83,663.61,0.30138183]
[1738100276046,0.27670596,664.82,663.61,0.30138183]
[1738100276450,1.57189855,664.81,663.61,0.30138183]
[1738100276645,0.27670596,664.8,663.61,0.30138183]
[1738100277451,1.57189855,664.81,663.61,0.30138183]
[1738100278554,0.27676759,664.8,663.61,0.30138183]
[1738100279555,1.57189855,664.81,663.61,0.30138183]
[1738100279855,0.2767753,664.8,663.61,0.30138183]
[1738100280854,1.57189855,664.81,663.61,0.30138183]
[1738100282953,0.30084235,664.8,663.61,0.30138183]
[1738100283756,0.27676339,664.79,663.61,0.30138183]
[1738100283953,0.3008514,664.78,663.61,0.30138183]
[1738100284255,0.27676639,664.77,663.61,0.30138183]
[1738100284454,0.30086046,664.76,663.61,0.30138183]
[1738100284648,0.27676639,664.75,663.61,0.30138183]
[1738100285254,0.27676639,664.74,663.61,0.30138183]
[1738100285453,0.30086046,664.76,663.61,0.30138183]
[1738100285454,0.27676639,664.75,663.61,0.30138183]
[1738100285648,0.30086046,664.76,663.61,0.30138183]
[1738100287156,0.2767694,664.75,663.61,0.30138183]
[1738100287455,0.30086951,664.74,663.61,0.30138183]
[1738100287853,0.27677832,664.73,663.61,0.30138183]
[1738100288055,1.87309355,664.74,663.61,0.30138183]
[1738100289455,1.87309355,664.74,663.36,1.12119965]
[1738100289856,1.87309355,664.74,663.27,1.12119965]
[1738100290557,1.87309355,664.74,663.28,0.30153178]
[1738100294364,0.27676337,664.73,663.38,1.12119965]
[1738100294665,0.57764034,664.72,663.38,1.12119965]
[1738100294865,0.57764487,664.71,663.38,1.12119965]
[1738100295061,0.57764939,664.7,663.38,1.12119965]
[1738100295260,0.27676178,664.69,663.38,1.12119965]
[1738100295458,0.30089667,664.68,663.38,1.12119965]
[1738100295663,0.27676178,664.67,663.38,1.12119965]
[1738100295860,0.30090572,664.66,663.38,1.12119965]
[1738100297060,0.30090572,664.66,663.35,1.12119965]
[1738100297466,0.27677447,664.65,663.35,1.12119965]
[1738100297666,0.30091478,664.64,663.35,1.12119965]
[1738100297867,0.27677447,664.63,663.35,1.12119965]
[1738100298065,0.30092383,664.62,663.35,1.12119965]
[1738100298267,0.27677447,664.61,663.35,1.12119965]
[1738100299370,0.30092383,664.62,663.35,1.12119965]
[1738100299867,0.27678741,664.61,663.35,1.12119965]
[1738100300069,0.30092383,664.62,663.35,1.12119965]
[1738100300471,0.30092383,664.62,663.37,1.12119965]
[1738100302371,0.2767859,664.61,663.37,1.12119965]
[1738100303271,0.27678995,664.6,663.37,1.12119965]
[1738100303566,0.27678995,664.59,663.37,1.12119965]
[1738100303766,0.27678995,664.61,663.37,1.12119965]
[1738100303971,0.30092383,664.62,663.37,1.12119965]
[1738100304271,0.2767963,664.61,663.37,1.12119965]
[1738100304670,0.30092383,664.62,663.37,1.12119965]
[1738100304867,0.27678562,664.61,663.37,1.12119965]
[1738100305572,0.30092383,664.62,663.37,1.12119965]
[1738100305774,0.27676302,664.61,663.37,1.12119965]
[1738100306073,0.30092383,664.62,663.37,1.12119965]
[1738100306273,0.30092383,664.62,663.38,0.30148632]
[1738100307275,0.27674072,664.61,663.38,0.30148632]
[1738100307476,0.27674072,664.61,663.5,1.12119965]
[1738100308677,0.30092383,664.62,663.5,1.12119965]
[1738100309676,0.30092383,664.62,663.38,0.30148632]
[1738100309677,0.30092383,664.62,663.59,1.12119965]
[1738100312880,0.30092383,664.62,663.56,1.12119965]
[1738100316181,0.30092383,664.62,663.61,1.12119965]
[1738100319881,0.30092383,664.62,663.44,1.12119965]
[1738100321788,0.30092383,664.62,663.45,0.30145451]
[1738100328594,0.27679121,664.61,663.45,0.30145451]
[1738100329288,1.57227732,664.6,663.45,0.30145451]
[1738100329494,0.27679121,664.59,663.45,0.30145451]
[1738100329895,1.57227732,664.6,663.45,0.30145451]
[1738100331193,0.30092383,664.62,663.45,0.30145451]
[1738100332790,0.30092383,664.62,663.46,1.12119965]
[1738100334900,0.30092383,664.62,663.63,1.12119965]
[1738100337994,0.30092383,664.62,663.61,1.12119965]
[1738100341602,0.30092383,664.62,663.45,1.42265416]
[1738100341796,1.57199322,664.61,663.45,1.42265416]
[1738100344800,0.30092383,664.62,663.45,1.42265416]
[1738100344996,0.30092383,664.62,663.45,0.30145451]
[1738100347399,0.30092383,664.62,663.62,1.12119965]
[1738100349503,0.30092383,664.62,663.6,1.12119965]
[1738100350401,0.27677688,664.61,663.6,1.12119965]
[1738100351105,0.30092383,664.62,663.6,1.12119965]
[1738100351303,0.27678555,664.61,663.6,1.12119965]
[1738100352106,0.27678555,664.61,663.51,1.12119965]
[1738100352911,0.27681441,664.6,663.51,1.12119965]
[1738100353111,0.30093742,664.59,663.51,1.12119965]
[1738100353312,0.2768197,664.58,663.51,1.12119965]
[1738100353508,0.30094647,664.57,663.51,1.12119965]
[1738100353813,0.2768197,664.56,663.51,1.12119965]
[1738100354020,0.30095553,664.55,663.51,1.12119965]
[1738100354217,0.2768197,664.54,663.51,1.12119965]
[1738100354415,0.30096459,664.53,663.51,1.12119965]
[1738100354616,0.2768197,664.52,663.45,0.30145451]
[1738100354816,0.30097364,664.51,663.45,0.30145451]
[1738100355116,1.87344633,664.51,663.45,0.30145451]
[1738100360523,0.27680413,664.5,663.45,0.30145451]
[1738100362825,1.87344633,664.51,663.45,0.30145451]
[1738100363020,0.30097364,664.51,663.45,0.30145451]
[1738100365732,0.30097364,664.51,663.49,1.12119965]
[1738100365733,0.27676507,664.5,663.49,1.12119965]
[1738100366033,0.30097364,664.51,663.49,1.12119965]
[1738100368328,0.30097364,664.51,663.45,0.30145451]
[1738100369035,0.27678777,664.5,663.45,0.30145451]
[1738100369931,0.27678544,664.49,663.45,0.30145451]
[1738100370130,0.27678544,664.5,663.45,0.30145451]
[1738100370434,0.30097364,664.51,663.45,0.30145451]
[1738100371737,0.30097364,664.51,663.49,1.12119965]
[1738100375142,0.30097364,664.51,663.45,0.30145451]
[1738100382042,0.30097364,664.51,663.48,1.12119965]
[1738100384850,0.30097364,664.51,663.45,0.30145451]
[1738100384851,0.30097364,664.51,663.54,1.12119965]
[1738100387950,0.30097364,664.51,663.45,0.30145451]
[1738100387951,0.28803663,664.51,663.45,0.30145451]
[1738100396550,0.28803663,664.51,663.53,1.12119965]
[1738100399059,0.28803663,664.51,663.47,1.12119965]
[1738100402568,0.28803663,664.51,663.45,1.42265416]
[1738100406767,0.28803663,664.51,663.48,1.12119965]
[1738100409663,0.28803663,664.51,663.54,1.12119965]
[1738100413172,0.28803663,664.51,663.47,1.12119965]
[1738100419367,0.27680798,664.5,663.47,1.12119965]
[1738100419571,0.27680798,664.5,663.51,1.12119965]
[1738100419767,0.28803663,664.51,663.51,1.12119965]
[1738100422069,0.27680611,664.5,663.51,1.12119965]
[1738100422274,0.28803663,664.51,663.51,1.12119965]
[1738100422474,0.2768049,664.5,663.51,1.12119965]
[1738100423176,0.28803663,664.51,663.51,1.12119965]
[1738100424676,0.28803663,664.51,663.48,1.12119965]
[1738100427971,0.28803663,664.51,663.57,1.12119965]
[1738100431773,0.28803663,664.51,663.56,1.12119965]
[1738100432178,0.27677999,664.5,663.56,1.12119965]
[1738100434980,0.27677999,664.5,663.65,1.12119965]
[1738100435577,0.28803663,664.51,663.65,1.12119965]
[1738100437685,0.28803663,664.51,663.46,1.12119965]
[1738100440482,0.28803663,664.51,663.47,0.30144543]
[1738100441182,0.28803663,664.51,663.55,1.12119965]
[1738100441383,2.6941565,664.8,663.55,1.12119965]
[1738100444189,1.57186897,664.8,663.48,1.12119965]
[1738100444393,1.57186897,664.8,663.49,0.30143634]
[1738100451102,0.27670664,664.79,663.49,0.30143634]
[1738100453706,0.27670664,664.79,663.62,1.12119965]
[1738100454102,1.57186897,664.8,663.62,1.12119965]
[1738100454302,1.12228753,664.96,663.62,1.42257694]
[1738100454502,1.57160868,664.89,663.62,1.42257694]
[1738100454702,0.27667766,664.88,663.62,1.42257694]
[1738100456004,0.27667766,664.88,663.69,1.12119965]
[1738100457206,0.30081068,664.87,663.69,1.12119965]
[1738100457405,0.27667766,664.86,663.69,1.12119965]
[1738100457605,0.57749286,664.86,663.69,1.12119965]
[1738100457807,0.3008152,664.86,663.69,1.12119965]
[1738100458106,0.27671566,664.85,663.69,1.12119965]
[1738100458404,0.30082425,664.84,663.69,1.12119965]
[1738100458604,0.27671566,664.83,663.69,1.12119965]
[1738100459299,0.27671566,664.83,663.62,1.42257694]
[1738100462705,0.30082425,664.84,663.62,1.42257694]
[1738100463007,0.30082425,664.84,663.62,0.30137729]
[1738100466306,0.30082425,664.84,663.65,1.12119965]
[1738100469108,0.30082425,664.84,663.62,0.30137729]
[1738100474719,1.57160276,664.83,663.62,0.30137729]
[1738100475219,1.57160276,664.83,663.69,1.12119965]
[1738100475719,0.30082425,664.84,663.69,1.12119965]
[1738100478123,0.30082425,664.84,663.73,1.12119965]
[1738100481124,0.30082425,664.84,663.71,1.12119965]
[1738100483525,0.30082425,664.84,663.76,1.12119965]
[1738100484325,1.57150814,664.96,663.76,1.12119965]
[1738100484725,0.27671225,664.95,663.76,1.12119965]
[1738100486830,0.27671225,664.95,663.52,1.12119965]
[1738100488233,1.57150814,664.96,663.52,1.12119965]
[1738100488431,0.27672333,664.95,663.52,1.12119965]
[1738100489333,1.57150814,664.96,663.52,1.12119965]
[1738100489525,0.27673601,664.95,663.52,1.12119965]
[1738100489731,1.12228753,664.85,663.69,1.12119965]
[1738100489931,0.27673601,664.84,663.69,1.12119965]
[1738100490433,1.57179797,664.83,663.69,1.12119965]
[1738100490634,0.27673601,664.82,663.69,1.12119965]
[1738100491936,0.27673601,664.82,658.84,3.51665089]
[1738100491937,1.12228753,664.8,663.63,1.12119965]
[1738100492839,0.27668965,664.79,663.63,1.12119965]
[1738100493939,0.27668488,664.78,663.63,1.12119965]
[1738100494132,0.27668488,664.79,663.63,1.12119965]
[1738100494331,0.27668488,664.78,663.63,1.12119965]
[1738100494531,0.27668488,664.79,663.63,1.12119965]
[1738100495035,1.12228753,664.8,663.63,1.12119965]
[1738100495632,1.57157911,664.92,663.73,1.12119965]
[1738100495837,0.27664796,664.91,663.73,1.12119965]
[1738100498637,0.27664796,664.91,663.84,1.12119965]
[1738100499636,1.57157911,664.92,663.84,1.12119965]
[1738100499839,1.12228753,665.07,663.84,1.12119965]
[1738100500039,1.57127753,665.0,663.84,1.12119965]
[1738100500437,0.27661026,664.99,663.84,1.12119965]
[1738100502236,0.27661026,664.99,663.89,1.12119965]
[1738100503142,0.27662258,664.98,663.89,1.12119965]
[1738100503343,0.27662258,664.99,663.89,1.12119965]
[1738100503539,1.57127753,665.0,663.89,1.12119965]
[1738100503740,0.27661833,664.99,663.89,1.12119965]
[1738100503943,1.57127753,665.0,663.89,1.12119965]
[1738100504244,0.27662506,664.99,663.89,1.12119965]
[1738100505940,0.27662506,664.99,663.81,1.12119965]
[1738100508242,1.57127753,665.0,663.81,1.12119965]
[1738100508442,0.27669381,664.99,663.81,1.12119965]
[1738100508642,0.27669381,664.99,663.74,1.12119965]
[1738100511154,0.27669381,664.99,663.67,1.12119965]
[1738100511449,1.57127753,665.0,663.67,1.12119965]
[1738100511650,0.2766916,664.99,663.67,1.12119965]
[1738100513248,0.27669839,664.98,663.67,1.12119965]
[1738100513451,0.27669839,664.99,663.67,1.12119965]
[1738100513651,0.27669839,664.98,663.67,1.12119965]
[1738100513845,0.27669839,664.99,663.67,1.12119965]
[1738100514048,0.27669839,664.98,663.67,1.12119965]
[1738100514350,0.27669839,664.97,663.67,1.12119965]
[1738100514550,0.27669839,664.96,663.67,1.12119965]
[1738100514745,0.27669839,664.95,663.68,1.12119965]
[1738100514949,0.27669839,664.96,663.68,1.12119965]
[1738100515248,0.27669839,664.95,663.68,1.12119965]
[1738100515445,0.27669839,664.94,663.68,1.12119965]
[1738100515649,0.27669839,664.93,663.68,1.12119965]
[1738100515844,0.27669839,664.92,663.68,1.12119965]
[1738100516050,1.57156728,664.92,663.68,1.12119965]
[1738100516249,0.27669839,664.91,663.68,1.12119965]
[1738100516445,0.30079711,664.9,663.68,1.12119965]
[1738100516851,0.27668951,664.89,663.68,1.12119965]
[1738100517651,0.30079711,664.9,663.68,1.12119965]
[1738100517853,0.30079711,664.9,663.7,1.12119965]
[1738100520957,0.30079711,664.9,663.56,1.12119965]
[1738100523652,0.30079711,664.9,663.58,1.12119965]
[1738100524055,0.30079711,664.9,663.59,0.30139091]
[1738100526658,0.30079711,664.9,663.66,1.12119965]
[1738100528551,0.30079711,664.9,663.67,0.30135458]
[1738100529259,0.27665716,664.89,663.67,0.30135458]
[1738100529560,0.27665716,664.89,663.86,1.12119965]
[1738100530958,0.30079711,664.9,663.86,1.12119965]
[1738100531159,0.27665555,664.89,663.86,1.12119965]
[1738100531960,0.27665555,664.89,663.79,1.12119965]
[1738100533057,0.30079711,664.9,663.79,1.12119965]
[1738100533260,0.27665483,664.89,663.79,1.12119965]
[1738100533460,0.30079711,664.9,663.79,1.12119965]
[1738100534259,0.27665189,664.89,663.79,1.12119965]
[1738100535155,0.27665189,664.89,663.81,1.12119965]
[1738100536163,0.27665874,664.88,663.81,1.12119965]
[1738100536357,0.30079711,664.9,663.81,1.12119965]
[1738100537866,1.57149631,664.89,663.81,1.12119965]
[1738100541069,1.57149631,664.89,663.67,0.30135458]
[1738100542367,0.27668982,664.88,663.67,0.30135458]
[1738100543463,1.57149631,664.89,663.67,0.30135458]
[1738100543663,0.27669766,664.88,663.67,0.30135458]
[1738100544571,0.27669766,664.88,663.68,1.12119965]
[1738100546772,1.57149631,664.89,663.68,1.12119965]
[1738100546968,0.27668103,664.88,663.68,1.12119965]
[1738100547574,0.27668103,664.88,663.67,0.30135458]
[1738100547575,1.12228753,664.85,663.82,1.12119965]
[1738100547774,0.27668103,664.84,663.82,1.12119965]
[1738100550370,0.27668103,664.84,663.87,1.12119965]
[1738100550576,0.27662231,664.86,663.87,1.12119965]
[1738100550775,1.12228753,664.87,663.87,1.12119965]
[1738100552277,0.27664017,664.86,663.87,1.12119965]
[1738100553179,1.12228753,664.87,663.87,1.12119965]
[1738100553684,1.12228753,664.87,663.68,1.12119965]
[1738100553685,0.30079711,664.9,663.96,1.12119965]
[1738100553980,0.27663047,664.89,663.96,1.12119965]
[1738100555889,0.30079711,664.9,663.96,1.12119965]
[1738100556082,0.27663231,664.89,663.94,1.12119965]
[1738100556992,0.30079711,664.9,663.94,1.12119965]
[1738100557184,0.27663606,664.89,663.94,1.12119965]
[1738100557489,0.30079711,664.9,663.94,1.12119965]
[1738100558691,0.30079711,664.9,663.82,1.12119965]
[1738100561792,0.30079711,664.9,663.84,1.12119965]
[1738100562086,0.30079711,664.9,663.84,1.42247706]
[1738100564494,0.30079711,664.9,663.87,1.12119965]
[1738100567095,0.30079711,664.9,663.84,0.30127741]
[1738100583600,0.30079711,664.9,663.85,1.12119965]
[1738100586202,0.30079711,664.9,663.84,0.30127741]
[1738100591103,0.27669769,664.89,663.84,0.30127741]
[1738100591299,1.84822357,664.89,663.84,0.30127741]
[1738100591499,0.27669769,664.88,663.84,0.30127741]
[1738100592505,0.30081068,664.87,663.84,0.30127741]
[1738100592706,0.27669769,664.86,663.84,0.30127741]
[1738100598705,0.30081973,664.85,663.6,1.12119965]
[1738100598911,0.27669769,664.84,663.56,1.12119965]
[1738100599105,0.30081973,664.85,663.56,1.12119965]
[1738100599411,0.27672468,664.84,663.56,1.12119965]
[1738100600110,0.30082878,664.83,663.56,1.12119965]
[1738100600311,0.27672468,664.82,663.56,1.12119965]
[1738100601603,1.57209975,664.81,663.56,1.12119965]
[1738100601903,0.27672468,664.8,663.56,1.12119965]
[1738100602309,0.3008514,664.78,663.56,1.12119965]
[1738100602808,0.27672468,664.77,663.43,1.12119965]
[1738100603413,0.30086498,664.75,663.43,1.12119965]
[1738100606214,0.30086498,664.75,662.96,1.34543958]
[1738100606215,0.30086498,664.75,662.77,1.12119965]
[1738100606408,0.30086498,664.75,662.79,0.3017547]
[1738100606409,0.27685473,664.74,662.79,0.3017547]
[1738100607311,0.30087856,664.72,662.79,0.3017547]
[1738100607615,0.27686177,664.71,662.79,0.3017547]
[1738100607815,0.30089214,664.69,662.79,0.3017547]
[1738100608016,0.27686177,664.68,662.79,0.3017547]
[1738100608216,0.30090572,664.66,662.79,0.3017547]
[1738100608418,0.27686177,664.65,662.79,0.3017547]
[1738100608718,0.30091478,664.64,662.79,0.3017547]
[1738100611110,0.27688225,664.63,662.79,0.3017547]
[1738100611919,1.57297022,664.62,662.79,0.3017547]
[1738100612119,0.27688225,664.61,662.79,0.3017547]
[1738100612519,1.57297022,664.62,662.79,0.3017547]
[1738100612720,0.27691278,664.61,662.79,0.3017547]
[1738100616025,0.27691278,664.6,662.79,0.3017547]
[1738100616324,0.27691278,664.59,662.79,0.3017547]
[1738100616525,0.27691278,664.61,662.79,0.3017547]
[1738100616823,0.27691278,664.6,662.79,0.3017547]
[1738100617019,0.27691278,664.59,662.79,0.3017547]
[1738100617324,0.27691278,664.58,662.79,0.3017547]
[1738100617524,0.27691278,664.61,662.79,0.3017547]
[1738100617723,0.27691278,664.6,662.79,0.3017547]
[1738100617917,0.27691278,664.61,662.79,0.3017547]
[1738100618122,0.27691278,664.6,662.79,0.3017547]
[1738100618320,0.27691278,664.61,662.79,0.3017547]
[1738100618523,0.27691278,664.6,662.79,0.3017547]
[1738100618720,0.27691278,664.59,662.79,0.3017547]
[1738100618926,0.27691278,664.61,662.79,0.3017547]
[1738100619130,0.27691278,664.6,662.79,0.3017547]
[1738100619426,0.27699903,664.59,662.79,0.3017547]
[1738100619630,1.57297022,664.62,662.79,0.3017547]
[1738100619631,0.27699903,664.58,662.79,0.3017547]
[1738100619832,0.27699903,664.57,662.79,0.3017547]
[1738100620130,1.57297022,664.62,662.79,0.3017547]
[1738100620131,0.27699903,664.56,662.79,0.3017547]
[1738100620328,0.27699903,664.55,662.79,0.3017547]
[1738100620528,0.27699903,664.54,662.79,0.3017547]
[1738100620729,0.27699903,664.53,662.79,0.3017547]
[1738100621029,1.57297022,664.62,662.79,0.3017547]
[1738100621230,0.27701707,664.61,662.79,0.3017547]
[1738100621530,0.27701707,664.6,662.79,0.3017547]
[1738100621731,0.27701707,664.59,662.79,0.3017547]
[1738100621932,0.27701707,664.58,662.79,0.3017547]
[1738100622232,0.27701707,664.57,662.79,0.3017547]
[1738100622530,0.27701707,664.56,662.79,0.3017547]
[1738100622732,0.27701707,664.55,662.79,0.3017547]
[1738100622933,0.27701707,664.54,662.79,0.3017547]
[1738100623128,0.27701707,664.53,662.79,0.3017547]
[1738100623331,0.27701707,664.52,662.79,0.3017547]
[1738100623535,0.27701707,664.51,662.79,0.3017547]
[1738100623730,0.27701707,664.5,662.79,0.3017547]
[1738100623931,0.27701707,664.49,662.79,0.3017547]
[1738100624132,0.27701707,664.48,662.79,0.3017547]
[1738100624332,0.27701707,664.48,662.24,1.12119965]
[1738100624626,0.27701707,664.47,662.26,0.30199619]
[1738100624832,0.27701707,664.46,662.26,0.30199619]
[1738100625036,0.27701707,664.45,662.26,0.30199619]